bitfinex/quotes_BTCUSD_20240826
["timestamp","ask_amount","ask_price","bid_price","bid_amount"]
[1724661495389,0.00290751,63853.0,63852.0,1.12886457]
[1724661508213,0.00290751,63853.0,63852.0,1.31764827]
[1724661508632,0.00290751,63853.0,63852.0,1.38064827]
[1724661509453,0.00290751,63853.0,63852.0,1.53682628]
[1724661523135,0.00290751,63853.0,63852.0,0.78406]
[1724661523338,0.09685601,63853.0,63852.0,0.470836]
[1724661523566,0.46754579,63853.0,63852.0,0.470836]
[1724661523784,0.46754579,63853.0,63852.0,0.78406]
[1724661524384,0.46770915,63853.0,63852.0,0.78406]
[1724661524684,0.46770989,63853.0,63852.0,0.78406]
[1724661524924,0.37378482,63853.0,63852.0,0.78406]
[1724661525052,0.37378482,63853.0,63852.0,0.470836]
[1724661526566,0.49124334,63853.0,63852.0,0.470836]
[1724661526805,0.37378482,63853.0,63852.0,0.470836]
[1724661527291,0.49124301,63853.0,63852.0,0.470836]
[1724661527531,0.37378482,63853.0,63852.0,0.470836]
[1724661529416,0.49127779,63853.0,63852.0,0.470836]
[1724661529614,0.49127854,63853.0,63852.0,0.78406]
[1724661530132,0.49127854,63853.0,63852.0,0.92766]
[1724661530342,0.02653528,63853.0,63852.0,1.10683801]
[1724661530586,0.07339789,63853.0,63852.0,1.42006201]
[1724661532192,0.07339786,63853.0,63852.0,1.42006201]
[1724661539265,0.00290751,63853.0,63852.0,1.42006201]
[1724661540120,0.04990079,63853.0,63852.0,1.26345001]
[1724661540464,0.04990079,63853.0,63852.0,1.42006201]
[1724661540465,0.07352564,63853.0,63852.0,1.42006201]
[1724661540996,0.07352521,63853.0,63852.0,1.42006201]
[1724661541380,0.07352521,63853.0,63852.0,1.39706201]
[1724661545265,0.02653236,63853.0,63852.0,0.94023801]
[1724661545896,0.02653236,63853.0,63852.0,1.25346201]
[1724661550191,0.09702068,63853.0,63852.0,1.25346201]
[1724661550693,0.02653236,63853.0,63852.0,1.25346201]
[1724661550916,0.09701977,63853.0,63852.0,1.25346201]
[1724661551240,0.09702837,63853.0,63852.0,1.25346201]
[1724661552190,0.02654096,63853.0,63852.0,1.25346201]
[1724661552392,0.00290751,63853.0,63852.0,1.25346201]
[1724661552840,0.07339408,63853.0,63852.0,1.25346201]
[1724661553040,0.09688961,63853.0,63852.0,0.94023801]
[1724661553218,0.44411886,63853.0,63852.0,0.94023801]
[1724661553416,0.46775231,63853.0,63852.0,1.25346201]
[1724661553915,0.12052306,63853.0,63852.0,1.25346201]
[1724661554116,0.37378209,63853.0,63852.0,1.25346201]
[1724661554342,0.02654096,63853.0,63852.0,1.25346201]
[1724661554677,0.00290751,63853.0,63852.0,0.94023801]
[1724661555417,0.02654096,63853.0,63852.0,1.25428701]
[1724661555645,0.07339535,63853.0,63852.0,1.25428701]
[1724661555871,0.00290751,63853.0,63852.0,1.25428701]
[1724661556535,0.00290751,63853.0,63852.0,0.94106301]
[1724661557416,0.07339553,63853.0,63852.0,0.94106301]
[1724661557649,0.02653945,63853.0,63852.0,0.94106301]
[1724661558101,0.00290751,63853.0,63852.0,0.94106301]
[1724661558259,0.07339539,63853.0,63852.0,0.94106301]
[1724661558586,0.02653945,63853.0,63852.0,0.94106301]
[1724661558797,0.00290751,63853.0,63852.0,0.94106301]
[1724661559002,0.02653945,63853.0,63852.0,0.94106301]
[1724661559217,0.00290751,63853.0,63852.0,0.94106301]
[1724661559370,0.07339571,63853.0,63852.0,0.94106301]
[1724661559569,0.09702765,63853.0,63852.0,0.94106301]
[1724661559830,0.02653945,63853.0,63852.0,0.94106301]
[1724661560033,0.0970272,63853.0,63852.0,0.94106301]
[1724661560238,0.07339491,63853.0,63852.0,0.94106301]
[1724661560439,0.09702774,63853.0,63852.0,0.94106301]
[1724661560648,0.0733958,63853.0,63852.0,0.94106301]
[1724661560831,0.09702774,63853.0,63852.0,0.94106301]
[1724661561034,0.0733958,63853.0,63852.0,1.25428701]
[1724661561254,0.09702757,63853.0,63852.0,0.94106301]
[1724661561371,0.0733958,63853.0,63852.0,0.94106301]
[1724661561571,0.09702757,63853.0,63852.0,1.25428701]
[1724661561916,0.09702757,63853.0,63852.0,0.94106301]
[1724661562118,0.09702757,63853.0,63852.0,1.25428701]
[1724661562693,0.02653928,63853.0,63852.0,1.25428701]
[1724661562899,0.07339522,63853.0,63852.0,1.25428701]
[1724661563100,0.00290751,63853.0,63852.0,1.25428701]
[1724661563302,0.07339555,63853.0,63852.0,1.25428701]
[1724661563600,0.09702742,63853.0,63852.0,1.25428701]
[1724661564074,0.09702742,63853.0,63852.0,0.8934687]
[1724661564277,0.02653938,63853.0,63852.0,0.8934687]
[1724661564486,0.37377245,63853.0,63852.0,0.8934687]
[1724661564668,0.35014058,63853.0,63852.0,0.8934687]
[1724661564823,0.37377245,63853.0,63852.0,0.8934687]
[1724661570295,0.4677573,63853.0,63852.0,0.8934687]
[1724661575365,0.37377245,63853.0,63852.0,0.8934687]
[1724661575855,0.37358396,63853.0,63852.0,0.8934687]
[1724661579305,0.37358427,63853.0,63852.0,0.8934687]
[1724661583940,0.4911302,63853.0,63852.0,0.8934687]
[1724661589067,0.37358427,63853.0,63852.0,0.8934687]
[1724661594057,0.37359915,63853.0,63852.0,0.8934687]
[1724661595329,0.14388881,63853.0,63852.0,0.8934687]
[1724661595531,0.37359915,63853.0,63852.0,0.8934687]
[1724661596508,0.49113654,63853.0,63852.0,0.8934687]
[1724661596725,0.37359915,63853.0,63852.0,0.8934687]
[1724661597391,0.49113357,63853.0,63852.0,0.8934687]
[1724661597601,0.37359915,63853.0,63852.0,0.8934687]
[1724661599119,0.37360257,63853.0,63852.0,0.8934687]
[1724661600952,1.43919278,63853.0,63852.0,0.001825]
[1724661601192,1.84094009,63853.0,63852.0,0.001825]
[1724661601417,0.313275,63842.0,63836.0,0.157476]
[1724661601652,0.50485066,63841.0,63836.0,0.000825]
[1724661601896,0.552345,63837.0,63836.0,0.000825]
[1724661602103,0.89959668,63837.0,63836.0,0.000825]
[1724661602320,0.91209125,63837.0,63836.0,0.000825]
[1724661602969,0.91209125,63837.0,63836.0,0.001825]
[1724661603186,1.22538825,63837.0,63836.0,0.001825]
[1724661603399,1.22538825,63837.0,63836.0,0.000825]
[1724661604479,0.91209125,63837.0,63836.0,0.000825]
[1724661604911,0.92109125,63837.0,63836.0,0.001825]
[1724661605128,1.23438825,63837.0,63836.0,0.001825]
[1724661605770,1.35163764,63837.0,63836.0,0.001825]
[1724661605970,1.41323764,63837.0,63836.0,0.001825]
[1724661606173,1.29598825,63837.0,63836.0,0.001825]
[1724661606633,1.41319002,63837.0,63836.0,0.001825]
[1724661607269,1.41332818,63837.0,63836.0,0.001825]
[1724661607474,1.29612537,63837.0,63836.0,0.001825]
[1724661607910,1.52191188,63837.0,63836.0,0.001825]
[1724661608312,1.4984063,63837.0,63836.0,0.001825]
[1724661608708,1.40470907,63837.0,63836.0,0.001825]
[1724661609320,1.49837844,63837.0,63836.0,0.001825]
[1724661609763,1.38979474,63837.0,63836.0,0.001825]
[1724661610172,1.49837844,63837.0,63836.0,0.001825]
[1724661610374,1.40470907,63837.0,63836.0,0.001825]
[1724661611204,1.05732027,63837.0,63836.0,0.001825]
[1724661611424,1.12753602,63837.0,63836.0,0.001825]
[1724661612456,1.05732027,63837.0,63836.0,0.001825]
[1724661613032,1.10412034,63837.0,63836.0,0.001825]
[1724661613240,1.05732027,63837.0,63836.0,0.001825]
[1724661613646,1.10411239,63837.0,63836.0,0.001825]
[1724661614050,1.12752038,63837.0,63836.0,0.001825]
[1724661614484,1.10410473,63837.0,63836.0,0.001825]
[1724661614664,1.05732027,63837.0,63836.0,0.001825]
[1724661615269,0.9955197,63837.0,63836.0,0.001825]
[1724661615476,0.02149457,63837.0,63836.0,0.001825]
[1724661615676,0.02149457,63837.0,63836.0,0.6581617]
[1724661616145,0.009,63837.0,63836.0,0.6581617]
[1724661616486,0.02183465,63837.0,63836.0,0.6581617]
[1724661616684,0.009,63837.0,63836.0,0.6581617]
[1724661617544,0.009,63837.0,63836.0,0.158476]
[1724661617942,0.02183465,63837.0,63836.0,0.158476]
[1724661618209,0.009,63837.0,63836.0,0.158476]
[1724661618370,0.02183465,63837.0,63836.0,0.158476]
[1724661618577,0.009,63837.0,63836.0,0.158476]
[1724661618784,0.02183465,63837.0,63836.0,0.158476]
[1724661618938,0.00881151,63837.0,63836.0,0.158476]
[1724661619152,0.02164616,63837.0,63836.0,0.158476]
[1724661619352,0.00881151,63837.0,63836.0,0.158476]
[1724661619770,0.02164616,63837.0,63836.0,0.158476]
[1724661623970,0.02164616,63837.0,63836.0,0.001825]
[1724661624378,0.02164616,63837.0,63836.0,0.158476]
[1724661625214,0.02164616,63837.0,63836.0,0.158476]
[1724661626645,0.17829416,63837.0,63836.0,0.001825]
[1724661626896,1.26058516,63837.0,63836.0,0.001825]
[1724661627139,1.33076393,63837.0,63836.0,0.001825]
[1724661627388,1.60799566,63837.0,63836.0,0.001825]
[1724661627792,1.72498219,63837.0,63836.0,0.001825]
[1724661628981,1.70157734,63837.0,63836.0,0.001825]
[1724661629427,2.07947067,63837.0,63836.0,0.001825]
[1724661629629,2.16259138,63837.0,63836.0,0.001825]
[1724661630254,2.16259138,63837.0,63831.0,0.000825]
[1724661630255,1.098627,63832.0,63831.0,0.000825]
[1724661630457,1.86665301,63832.0,63831.0,0.000825]
[1724661630658,1.98363612,63832.0,63831.0,0.000825]
[1724661631100,1.86665301,63832.0,63831.0,0.000825]
[1724661631298,1.98463612,63832.0,63831.0,0.000825]
[1724661631505,1.86765301,63832.0,63831.0,0.003825]
[1724661631819,1.96023379,63832.0,63831.0,0.000825]
[1724661632041,1.89465301,63832.0,63831.0,0.002825]
[1724661632240,1.97778256,63832.0,63831.0,0.002825]
[1724661632851,1.98824087,63832.0,63831.0,0.002825]
[1724661633255,1.97778849,63832.0,63831.0,0.002825]
[1724661633712,2.07137726,63832.0,63831.0,0.002825]
[1724661633898,2.0947716,63832.0,63831.0,0.002825]
[1724661636270,1.97778849,63832.0,63831.0,0.002825]
[1724661636475,2.09478665,63832.0,63831.0,0.002825]
[1724661636854,1.97778849,63832.0,63831.0,0.002825]
[1724661638591,2.09480647,63832.0,63831.0,0.002825]
[1724661639378,1.97778849,63832.0,63831.0,0.002825]
[1724661644097,1.83278849,63832.0,63831.0,0.002825]
[1724661644308,1.83478849,63832.0,63831.0,0.002825]
[1724661644507,1.64306931,63832.0,63831.0,0.002825]
[1724661645332,2.12948736,63832.0,63831.0,0.002825]
[1724661646088,2.27022434,63832.0,63831.0,0.002825]
[1724661646870,2.26822434,63832.0,63831.0,0.002825]
[1724661648167,2.52140804,63832.0,63831.0,0.002825]
[1724661648399,2.38070312,63832.0,63831.0,0.002825]
[1724661650805,2.31650312,63832.0,63831.0,0.002825]
[1724661651032,2.31650821,63832.0,63831.0,0.002825]
[1724661651375,2.39963907,63832.0,63831.0,0.002825]
[1724661652306,2.32123907,63832.0,63831.0,0.002825]
[1724661655440,2.40223907,63832.0,63831.0,0.002825]
[1724661657386,2.54293029,63832.0,63831.0,0.002825]
[1724661658475,2.40223907,63832.0,63831.0,0.002825]
[1724661658649,2.54292754,63832.0,63831.0,0.002825]
[1724661661460,2.05650588,63832.0,63831.0,0.002825]
[1724661661876,2.54292702,63832.0,63831.0,0.002825]
[1724661662526,2.40205001,63832.0,63831.0,0.002825]
[1724661663560,2.46715001,63832.0,63831.0,0.002825]
[1724661667611,1.89914431,63832.0,63831.0,0.002825]
[1724661668244,2.21246631,63832.0,63831.0,0.002825]
[1724661670267,1.89814431,63832.0,63831.0,0.002825]
[1724661670519,1.58382231,63832.0,63831.0,0.083125]
[1724661670683,1.58382231,63832.0,63831.0,0.148725]
[1724661671332,1.89714431,63832.0,63831.0,0.148725]
[1724661671464,1.86914431,63832.0,63831.0,0.000825]
[1724661672047,2.05543813,63832.0,63831.0,0.000825]
[1724661672163,2.04143813,63832.0,63831.0,0.000825]
[1724661672369,1.88314431,63832.0,63831.0,0.001825]
[1724661672567,1.89914431,63832.0,63831.0,0.001825]
[1724661673201,1.06527913,63832.0,63831.0,0.001825]
[1724661673628,1.05127913,63832.0,63831.0,0.000825]
[1724661674158,1.06527913,63832.0,63831.0,0.001825]
[1724661674658,1.37860113,63832.0,63831.0,0.001825]
[1724661675440,1.72603315,63832.0,63831.0,0.001825]
[1724661675635,2.21243798,63832.0,63831.0,0.001825]
[1724661676479,2.35203798,63832.0,63831.0,0.001825]
[1724661676649,2.35203798,63832.0,63824.0,0.000825]
[1724661676650,0.86119,63825.0,63824.0,0.000825]
[1724661676851,1.55651459,63825.0,63824.0,0.000825]
[1724661677113,1.56893737,63825.0,63824.0,0.000825]
[1724661677405,1.38455367,63825.0,63824.0,0.000825]
[1724661677608,1.5556025,63825.0,63824.0,0.064225]
[1724661677814,0.44298566,63825.0,63824.0,0.296405]
[1724661678232,0.3598548,63825.0,63824.0,0.296405]
[1724661678438,0.50994952,63825.0,63824.0,0.139725]
[1724661678610,0.45803667,63825.0,63824.0,0.140725]
[1724661678815,0.3748548,63825.0,63824.0,0.140725]
[1724661679017,0.51594637,63825.0,63824.0,0.140725]
[1724661679222,0.37485314,63825.0,63824.0,0.140725]
[1724661679587,0.37485314,63825.0,63824.0,0.297405]
[1724661680154,0.45803693,63825.0,63824.0,0.297405]
[1724661680691,0.45804101,63825.0,63824.0,0.297405]
[1724661680899,0.37485722,63825.0,63824.0,0.297405]
[1724661681112,0.45804265,63825.0,63824.0,0.297405]
[1724661681994,0.45804265,63825.0,63824.0,0.140725]
[1724661682194,0.37485722,63825.0,63824.0,0.140725]
[1724661682399,0.45804249,63825.0,63824.0,0.140725]
[1724661685519,1.3324382,63825.0,63824.0,0.001825]
[1724661685724,2.44565925,63825.0,63824.0,0.001825]
[1724661686136,2.44765925,63825.0,63824.0,0.001825]
[1724661688240,2.38465925,63825.0,63824.0,0.001825]
[1724661690388,2.54330155,63825.0,63824.0,0.001825]
[1724661690587,2.38465579,63825.0,63824.0,0.001825]
[1724661691680,2.43470267,63825.0,63824.0,0.001825]
[1724661692475,2.27607209,63825.0,63824.0,0.001825]
[1724661692720,2.43469409,63825.0,63824.0,0.001825]
[1724661695197,2.27607209,63825.0,63824.0,0.001825]
[1724661695401,2.27606378,63825.0,63824.0,0.001825]
[1724661695808,2.19946378,63825.0,63824.0,0.001825]
[1724661696214,2.35807063,63825.0,63824.0,0.001825]
[1724661696867,2.46665433,63825.0,63824.0,0.001825]
[1724661697273,2.30804748,63825.0,63824.0,0.001825]
[1724661697736,2.46664381,63825.0,63824.0,0.001825]
[1724661697941,2.30804748,63825.0,63824.0,0.001825]
[1724661698153,2.46664209,63825.0,63824.0,0.001825]
[1724661698326,2.30804748,63825.0,63824.0,0.001825]
[1724661699903,2.38844748,63825.0,63824.0,0.001825]
[1724661700436,2.45244748,63825.0,63824.0,0.001825]
[1724661701960,2.61101628,63825.0,63824.0,0.001825]
[1724661702145,2.45244748,63825.0,63824.0,0.001825]
[1724661702602,2.38844748,63825.0,63824.0,0.001825]
[1724661702837,2.46661232,63825.0,63824.0,0.001825]
[1724661703122,2.30804748,63825.0,63824.0,0.001825]
[1724661703531,2.46660879,63825.0,63824.0,0.001825]
[1724661704470,2.35802509,63825.0,63824.0,0.001825]
[1724661704667,2.19946378,63825.0,63824.0,0.001825]
[1724661705704,2.33936378,63825.0,63824.0,0.001825]
[1724661708007,2.65271978,63825.0,63824.0,0.001825]
[1724661708560,2.65271978,63825.0,63814.0,0.00825]
[1724661708561,1.096917,63815.0,63814.0,0.00825]
[1724661708763,1.61293976,63815.0,63814.0,0.00825]
[1724661709926,1.61293976,63815.0,63814.0,0.01025]
[1724661710140,1.61293976,63815.0,63814.0,0.01525]
[1724661710949,1.61293976,63815.0,63814.0,0.09155]
[1724661711325,1.61493976,63815.0,63814.0,0.09155]
[1724661712267,1.61993976,63815.0,63814.0,0.15625]
[1724661712935,1.30653476,63815.0,63814.0,0.15625]
[1724661714165,0.36684475,63815.0,63814.0,0.15625]
[1724661714377,0.64096384,63815.0,63814.0,0.15625]
[1724661715731,0.64077528,63815.0,63814.0,0.15625]
[1724661715934,0.48407328,63815.0,63814.0,0.15625]
[1724661718479,0.36665619,63815.0,63814.0,0.15625]
[1724661718906,0.36665619,63815.0,63814.0,0.312955]
[1724661719482,0.36666523,63815.0,63814.0,0.312955]
[1724661722688,0.36666523,63815.0,63814.0,0.15625]
[1724661724302,0.36666523,63815.0,63814.0,0.312955]
[1724661725509,0.36666523,63815.0,63814.0,0.15625]
[1724661725681,0.36666523,63815.0,63814.0,0.312955]
[1724661726120,0.36666523,63815.0,63814.0,0.15625]
[1724661727273,0.36666523,63815.0,63814.0,0.312955]
[1724661727675,0.36666523,63815.0,63814.0,0.412955]
[1724661729073,0.36666523,63815.0,63814.0,0.25625]
[1724661730331,0.52336723,63815.0,63814.0,0.25625]
[1724661730542,0.74689964,63815.0,63814.0,0.25625]
[1724661730744,0.60595882,63815.0,63814.0,0.17295]
[1724661730959,1.38894683,63815.0,63814.0,0.10825]
[1724661731542,1.87541966,63815.0,63814.0,0.10825]
[1724661736268,2.26962466,63815.0,63814.0,0.10825]
[1724661736410,2.42818308,63815.0,63814.0,0.10825]
[1724661736607,2.26962466,63815.0,63814.0,0.10825]
[1724661737654,2.26974807,63815.0,63814.0,0.10825]
[1724661738601,2.42843243,63815.0,63814.0,0.10825]
[1724661738981,2.26974807,63815.0,63814.0,0.10825]
[1724661739408,2.64355307,63815.0,63814.0,0.10825]
[1724661739626,2.64355307,63815.0,63810.0,0.00125]
[1724661739627,0.785562,63811.0,63810.0,0.00125]
[1724661739825,1.6187398,63811.0,63810.0,0.00125]
[1724661739978,2.11758278,63811.0,63810.0,0.00125]
[1724661740426,2.43100778,63811.0,63810.0,0.00125]
[1724661740843,2.44600778,63811.0,63810.0,0.00125]
[1724661742448,2.44612118,63811.0,63810.0,0.00125]
[1724661747501,2.44615597,63811.0,63810.0,0.00125]
[1724661749025,2.75958097,63811.0,63810.0,0.00125]
[1724661749760,0.470233,63798.0,63797.0,0.0648]
[1724661749961,0.54061155,63798.0,63797.0,0.0648]
[1724661750171,0.55287102,63798.0,63797.0,0.0648]
[1724661750594,0.55287102,63798.0,63797.0,0.1407]
[1724661750595,0.55286394,63798.0,63797.0,0.1407]
[1724661751561,0.55286394,63798.0,63797.0,0.1437]
[1724661751562,0.55386394,63798.0,63797.0,0.1437]
[1724661751767,0.55486394,63798.0,63797.0,0.1437]
[1724661752037,0.83208784,63798.0,63797.0,0.1437]
[1724661752242,0.83208773,63798.0,63797.0,0.1437]
[1724661752504,0.48449247,63798.0,63797.0,0.1437]
[1724661753458,0.55484704,63798.0,63797.0,0.1437]
[1724661753857,0.86833604,63798.0,63797.0,0.1437]
[1724661754312,0.86833604,63798.0,63797.0,0.144525]
[1724661756173,1.55288943,63798.0,63797.0,0.144525]
[1724661756378,1.61625148,63798.0,63797.0,0.003825]
[1724661756942,1.69623109,63798.0,63797.0,0.003825]
[1724661757701,1.69523109,63798.0,63797.0,0.000825]
[1724661758089,1.70423109,63798.0,63797.0,0.000825]
[1724661758499,1.62406288,63798.0,63797.0,0.000825]
[1724661758910,1.63606288,63798.0,63797.0,0.000825]
[1724661759316,1.63706288,63798.0,63797.0,0.000825]
[1724661759473,1.71723682,63798.0,63797.0,0.000825]
[1724661762203,1.71728311,63798.0,63797.0,0.000825]
[1724661765587,2.03077211,63798.0,63797.0,0.000825]
[1724661767180,2.03077463,63798.0,63797.0,0.000825]
[1724661773413,2.1713207,63798.0,63797.0,0.000825]
[1724661773915,2.2376207,63798.0,63797.0,0.000825]
[1724661775394,2.58379489,63798.0,63797.0,0.000825]
[1724661776015,2.58379489,63798.0,63791.0,0.0004]
[1724661776016,1.099313,63792.0,63791.0,0.0004]
[1724661776213,1.80149753,63792.0,63791.0,0.0004]
[1724661778292,1.80649753,63792.0,63791.0,0.0004]
[1724661778545,1.80949753,63792.0,63791.0,0.001225]
[1724661779211,1.80649753,63792.0,63791.0,0.001225]
[1724661779454,1.80149753,63792.0,63791.0,0.001225]
[1724661779718,1.71891383,63792.0,63791.0,0.146325]
[1724661779917,0.38324888,63792.0,63791.0,0.2549087]
[1724661780139,0.03559707,63792.0,63791.0,0.2549087]
[1724661780362,0.03559707,63792.0,63791.0,0.303086]
[1724661780551,0.03559707,63792.0,63791.0,0.146325]
[1724661780757,0.19235607,63792.0,63791.0,0.146325]
[1724661780930,1.0728027,63792.0,63791.0,0.146325]
[1724661781136,1.32660403,63792.0,63791.0,0.146325]
[1724661781356,1.43518773,63792.0,63791.0,0.146325]
[1724661781758,1.32660403,63792.0,63791.0,0.146325]
[1724661781966,1.32320296,63792.0,63791.0,0.146325]
[1724661784487,1.32320296,63792.0,63791.0,0.001225]
[1724661784887,1.40288249,63792.0,63791.0,0.001225]
[1724661785081,1.40388249,63792.0,63791.0,0.139425]
[1724661785861,1.54462981,63792.0,63791.0,0.139425]
[1724661786088,1.40388249,63792.0,63791.0,0.139425]
[1724661786507,1.71740049,63792.0,63791.0,0.139425]
[1724661788120,1.71740049,63792.0,63791.0,0.039425]
[1724661788121,1.63872096,63792.0,63791.0,0.039425]
[1724661788627,0.783807,63791.0,63790.0,0.00826]
[1724661788838,1.28761789,63791.0,63790.0,0.00826]
[1724661789157,1.29659987,63791.0,63790.0,0.00826]
[1724661790084,1.29662122,63791.0,63790.0,0.00826]
[1724661790289,1.30762122,63791.0,63790.0,0.00826]
[1724661790510,1.3863257,63791.0,63790.0,0.00826]
[1724661790920,1.7128487,63791.0,63790.0,0.00826]
[1724661792477,2.16931825,63791.0,63790.0,0.00826]
[1724661792695,2.59782365,63791.0,63790.0,0.00826]
[1724661794862,2.59661407,63791.0,63790.0,0.00826]
[1724661796236,2.1111101,63791.0,63790.0,0.00826]
[1724661796475,1.76341747,63791.0,63790.0,0.00826]
[1724661796948,2.59669831,63791.0,63790.0,0.00826]
[1724661799573,2.66029831,63791.0,63790.0,0.00826]
[1724661799977,2.1747101,63791.0,63790.0,0.00826]
[1724661800226,1.82701747,63791.0,63790.0,0.00826]
[1724661800675,1.82682881,63791.0,63790.0,0.00826]
[1724661805130,2.14035181,63791.0,63790.0,0.00826]
[1724661805895,2.12935181,63791.0,63790.0,0.00826]
[1724661806315,2.14335181,63791.0,63790.0,0.00826]
[1724661806714,2.13035181,63791.0,63790.0,0.00826]
[1724661807118,2.14435181,63791.0,63790.0,0.00826]
[1724661807488,2.15300831,63791.0,63790.0,0.00826]
[1724661807708,2.13900831,63791.0,63790.0,0.00826]
[1724661808334,2.16200831,63791.0,63790.0,0.00826]
[1724661808534,2.17600831,63791.0,63790.0,0.00826]
[1724661808779,2.14800831,63791.0,63790.0,0.00826]
[1724661809190,2.16200831,63791.0,63790.0,0.00826]
[1724661809418,1.5216797,63780.0,63775.0,0.0832]
[1724661809615,1.75656219,63780.0,63775.0,0.0832]
[1724661809795,1.76552812,63780.0,63775.0,0.0832]
[1724661810832,1.34336742,63780.0,63763.0,0.1085837]
[1724661811034,1.27666294,63780.0,63779.0,0.15255]
[1724661811250,1.27866294,63780.0,63779.0,0.15255]
[1724661811666,1.29266294,63780.0,63779.0,0.15255]
[1724661813560,0.97908594,63780.0,63779.0,0.15255]
[1724661813801,0.97708594,63780.0,63779.0,0.15255]
[1724661814201,1.32483666,63780.0,63779.0,0.15255]
[1724661817375,1.32479787,63780.0,63779.0,0.15255]
[1724661820842,1.43338157,63780.0,63779.0,0.15255]
[1724661821282,1.32479787,63780.0,63779.0,0.15255]
[1724661825569,1.40349219,63780.0,63779.0,0.15255]
[1724661827204,1.08991519,63780.0,63779.0,0.15255]
[1724661827365,1.08990869,63780.0,63779.0,0.15255]
[1724661827568,0.61954369,63780.0,63779.0,0.15255]
[1724661827823,0.47857945,63780.0,63779.0,0.309341]
[1724661828030,0.03696593,63780.0,63779.0,0.622923]
[1724661828204,0.10739474,63780.0,63779.0,0.622923]
[1724661828366,0.10739474,63780.0,63779.0,0.309341]
[1724661828785,0.09339474,63780.0,63779.0,0.309341]
[1724661829200,0.09139474,63780.0,63779.0,0.309341]
[1724661829407,0.09339474,63780.0,63779.0,0.15255]
[1724661829605,0.02296593,63780.0,63779.0,0.15255]
[1724661829837,0.96838885,63780.0,63779.0,0.15255]
[1724661830014,0.96838885,63780.0,63779.0,0.00825]
[1724661830015,1.6990258,63780.0,63779.0,0.00825]
[1724661830462,1.7120258,63780.0,63779.0,0.00825]
[1724661831306,1.85288003,63780.0,63779.0,0.00825]
[1724661831952,1.7120258,63780.0,63779.0,0.00825]
[1724661832150,1.71206807,63780.0,63779.0,0.00825]
[1724661832835,1.85300069,63780.0,63779.0,0.00825]
[1724661834208,2.19886733,63780.0,63779.0,0.00825]
[1724661834380,2.19822887,63780.0,63779.0,0.00825]
[1724661836159,2.18522887,63780.0,63779.0,0.00825]
[1724661836574,2.19922887,63780.0,63779.0,0.00825]
[1724661837053,2.18520225,63780.0,63779.0,0.00825]
[1724661837692,2.17520225,63780.0,63779.0,0.00825]
[1724661838102,2.29778595,63780.0,63779.0,0.00825]
[1724661838516,2.31178595,63780.0,63779.0,0.00825]
[1724661840758,2.70596295,63780.0,63779.0,0.00825]
[1724661840953,2.70696295,63780.0,63779.0,0.00825]
[1724661845368,2.7032562,63780.0,63779.0,0.00825]
[1724661846720,2.7032562,63780.0,63772.0,0.00825]
[1724661846721,1.099642,63773.0,63772.0,0.00825]
[1724661846925,2.10445834,63773.0,63772.0,0.00825]
[1724661847124,2.74557073,63773.0,63772.0,0.00825]
[1724661847327,2.75450695,63773.0,63772.0,0.00825]
[1724661847747,2.64592325,63773.0,63772.0,0.00825]
[1724661847983,2.59578449,63773.0,63772.0,0.00825]
[1724661848177,2.60278449,63773.0,63772.0,0.00825]
[1724661849466,2.61278449,63773.0,63772.0,0.00825]
[1724661850131,2.59953939,63773.0,63772.0,0.00825]
[1724661850341,2.28592739,63773.0,63772.0,0.00825]
[1724661850629,2.28992739,63773.0,63772.0,0.00825]
[1724661850873,2.29792739,63773.0,63772.0,0.00825]
[1724661854714,2.29773871,63773.0,63772.0,0.00825]
[1724661854925,2.29747495,63773.0,63772.0,0.00825]
[1724661855245,2.29747495,63773.0,63772.0,0.15195]
[1724661855462,1.87346793,63773.0,63772.0,0.15195]
[1724661855674,1.00230316,63773.0,63772.0,0.15195]
[1724661855865,1.31591516,63773.0,63772.0,0.15195]
[1724661862310,0.96814423,63773.0,63772.0,0.15195]
[1724661862940,1.3158898,63773.0,63772.0,0.15195]
[1724661863363,1.0022778,63773.0,63772.0,0.15195]
[1724661863573,0.6886658,63773.0,63772.0,0.15195]
[1724661864212,0.5318598,63773.0,63772.0,0.15195]
[1724661864423,0.37568179,63773.0,63772.0,0.308758]
[1724661864685,0.3765893,63773.0,63772.0,0.622375]
[1724661866136,0.02884373,63773.0,63772.0,0.122375]
[1724661866354,0.02884373,63773.0,63772.0,0.435992]
[1724661866502,0.01990751,63773.0,63772.0,0.435992]
[1724661869018,0.01990751,63773.0,63772.0,0.581592]
[1724661872642,0.02886335,63773.0,63772.0,0.302408]
[1724661873489,0.02886335,63773.0,63772.0,0.1456]
[1724661874905,0.18566935,63773.0,63772.0,0.1456]
[1724661875104,0.18566935,63773.0,63771.0,0.00865]
[1724661875105,0.470425,63772.0,63771.0,0.00865]
[1724661875307,1.25383701,63772.0,63771.0,0.00865]
[1724661875651,1.26279111,63772.0,63771.0,0.00865]
[1724661876099,1.34153368,63772.0,63771.0,0.00865]
[1724661876281,1.35153368,63772.0,63771.0,0.00865]
[1724661877898,1.35853368,63772.0,63771.0,0.00865]
[1724661880383,1.50413368,63772.0,63771.0,0.00865]
[1724661880635,2.33535147,63772.0,63771.0,0.00865]
[1724661885819,2.33716279,63772.0,63771.0,0.00865]
[1724661887268,2.49598694,63772.0,63771.0,0.00865]
[1724661887494,2.33716279,63772.0,63771.0,0.00865]
[1724661892437,1.505945,63772.0,63771.0,0.00865]
[1724661892645,2.3315589,63772.0,63771.0,0.00865]
[1724661893744,2.3315589,63772.0,63767.0,0.00825]
[1724661893745,1.24783732,63768.0,63767.0,0.00825]
[1724661893947,1.94808178,63768.0,63767.0,0.00825]
[1724661894153,2.73954074,63768.0,63767.0,0.00825]
[1724661894985,2.75354074,63768.0,63767.0,0.00825]
[1724661895191,2.91222661,63768.0,63767.0,0.00825]
[1724661895552,2.92622661,63768.0,63767.0,0.00825]
[1724661896398,2.92619658,63768.0,63767.0,0.00825]
[1724661896783,2.91219658,63768.0,63767.0,0.00825]
[1724661896994,2.92619658,63768.0,63767.0,0.00825]
[1724661897208,2.75354074,63768.0,63767.0,0.00825]
[1724661897357,2.74740251,63768.0,63767.0,0.00825]
[1724661897565,2.76140251,63768.0,63767.0,0.00825]
[1724661899380,2.44776651,63768.0,63767.0,0.00825]
[1724661899594,2.19007149,63768.0,63767.0,0.00825]
[1724661899796,1.85938302,63768.0,63767.0,0.00825]